bitfinex-derivatives/quotes_BTCF0:USTF0_20250510
["timestamp","ask_amount","ask_price","bid_price","bid_amount"]
[1746887866243,0.10145449,103590.0,103580.0,1.44640064]
[1746887866455,0.10145449,103590.0,103580.0,1.55576851]
[1746887866849,0.10145449,103590.0,103580.0,1.44640064]
[1746887867153,0.10145449,103590.0,103580.0,1.61240064]
[1746887868156,0.10145449,103590.0,103580.0,1.44640064]
[1746887870758,0.10145449,103590.0,103580.0,1.55576851]
[1746887871962,0.10145449,103590.0,103580.0,1.33703277]
[1746887872162,0.10145449,103590.0,103580.0,1.44640064]
[1746887875062,0.10145449,103590.0,103580.0,1.61240064]
[1746887876265,0.10145449,103590.0,103580.0,1.44640064]
[1746887879173,0.1751788,103590.0,103580.0,1.44640064]
[1746887879473,0.1751788,103590.0,103580.0,1.46679277]
[1746887879662,0.2053788,103590.0,103580.0,1.33703277]
[1746887879863,0.31474667,103590.0,103580.0,1.33703277]
[1746887880060,0.2687788,103590.0,103580.0,1.15703277]
[1746887881066,0.4347788,103590.0,103580.0,1.15703277]
[1746887881673,0.73718647,103590.0,103580.0,0.57297437]
[1746887881872,1.19452647,103590.0,103580.0,0.41152598]
[1746887882066,1.19452647,103590.0,103580.0,0.28068598]
[1746887882268,1.19452647,103590.0,103580.0,0.47374438]
[1746887882770,1.0851586,103590.0,103580.0,0.47374438]
[1746887882981,1.01143429,103590.0,103580.0,0.47374438]
[1746887883282,1.12080216,103590.0,103580.0,0.47174438]
[1746887883487,1.12080216,103590.0,103580.0,0.46974438]
[1746887885379,1.02426216,103590.0,103580.0,0.46974438]
[1746887885577,1.12080216,103590.0,103580.0,0.46974438]
[1746887886781,1.2098557,103590.0,103580.0,0.46974438]
[1746887888386,0.8572897,103590.0,103580.0,0.46974438]
[1746887888583,0.8572897,103590.0,103580.0,0.50094438]
[1746887889190,1.0232897,103590.0,103580.0,0.50094438]
[1746887890486,0.9267497,103590.0,103580.0,0.50094438]
[1746887890690,1.0232897,103590.0,103580.0,0.50094438]
[1746887890883,0.99844847,103590.0,103580.0,0.50094438]
[1746887891080,0.99844847,103590.0,103580.0,0.53104438]
[1746887891690,0.99660847,103590.0,103580.0,0.53104438]
[1746887894892,0.95670523,103590.0,103580.0,0.53104438]
[1746887895093,0.95770523,103590.0,103580.0,0.53004438]
[1746887895900,0.95670523,103590.0,103580.0,0.53004438]
[1746887896089,0.95670523,103590.0,103580.0,0.53104438]
[1746887897296,0.84733736,103590.0,103580.0,0.53104438]
[1746887897489,0.95670523,103590.0,103580.0,0.53104438]
[1746887898196,0.84733736,103590.0,103580.0,0.53104438]
[1746887898400,0.95670523,103590.0,103580.0,0.56424438]
[1746887900494,0.84733736,103590.0,103580.0,0.56424438]
[1746887900694,0.95670523,103590.0,103580.0,0.56424438]
[1746887902000,0.84733736,103590.0,103580.0,0.56424438]
[1746887902294,0.95670523,103590.0,103580.0,0.56424438]
[1746887903296,0.99660973,103590.0,103580.0,0.56424438]
[1746887903799,1.01680186,103590.0,103580.0,0.56424438]
[1746887903993,1.12616973,103590.0,103580.0,0.56324438]
[1746887904297,0.96116973,103590.0,103580.0,0.56024438]
[1746887904498,0.96116973,103590.0,103580.0,0.55924438]
[1746887904698,0.82130186,103590.0,103580.0,0.55924438]
[1746887904999,0.93066973,103590.0,103580.0,0.55924438]
[1746887907594,0.35755396,103590.0,103580.0,0.76515132]
[1746887907792,0.35755396,103590.0,103580.0,1.12595132]
[1746887908803,0.35655396,103590.0,103580.0,1.12595132]
[1746887909000,0.35655396,103590.0,103580.0,1.01758345]
[1746887909193,0.35555396,103590.0,103580.0,1.01858345]
[1746887919214,0.46492183,103590.0,103580.0,1.01858345]
[1746887919708,0.46492183,103590.0,103580.0,0.75778345]
[1746887921211,0.35555396,103590.0,103580.0,0.75778345]
[1746887921405,0.46492183,103590.0,103580.0,0.75778345]
[1746887922507,0.35555396,103590.0,103580.0,0.75778345]
[1746887923914,0.38685396,103590.0,103580.0,0.75778345]
[1746887924515,0.49622183,103590.0,103580.0,0.75778345]
[1746887926107,0.38685396,103590.0,103580.0,0.75778345]
[1746887927921,0.49622183,103590.0,103580.0,0.75778345]
[1746887931222,0.38685396,103590.0,103580.0,0.86715132]
[1746887931523,0.38685396,103590.0,103580.0,0.75778345]
[1746887932013,0.49622183,103590.0,103580.0,0.75778345]
[1746887932215,0.38685396,103590.0,103580.0,0.75778345]
[1746887932422,0.49622183,103590.0,103580.0,0.75778345]
[1746887932923,0.38685396,103590.0,103580.0,0.75778345]
[1746887934218,0.35555396,103590.0,103580.0,0.75778345]
[1746887934623,0.38735396,103590.0,103580.0,0.75778345]
[1746887937227,0.38735396,103590.0,103580.0,0.86715132]
[1746887937523,0.38735396,103590.0,103580.0,0.75778345]
[1746887938328,0.41219519,103590.0,103580.0,0.75778345]
[1746887938930,0.21915539,103590.0,103580.0,0.75778345]
[1746887939130,0.21915539,103590.0,103580.0,1.03315132]
[1746887939427,0.18735539,103590.0,103580.0,1.50331919]
[1746887939619,0.18735539,103590.0,103580.0,1.73331919]
[1746887939819,0.18735539,103590.0,103580.0,1.51458345]
[1746887940021,0.18735539,103590.0,103580.0,1.62395132]
[1746887941323,0.18735539,103590.0,103580.0,1.45795132]
[1746887942132,0.18735539,103590.0,103580.0,1.62395132]
[1746887942821,0.09828047,103590.0,103580.0,1.51458345]
[1746887943022,0.09828047,103590.0,103580.0,1.62395132]
[1746887943222,0.09828047,103590.0,103580.0,1.45795132]
[1746887943622,0.09828047,103590.0,103580.0,1.01858345]
[1746887943623,0.40068814,103590.0,103580.0,1.01858345]
[1746887943924,0.24024834,103590.0,103580.0,0.71778345]
[1746887944124,0.24024834,103590.0,103580.0,1.07858345]
[1746887944317,0.24024834,103590.0,103580.0,0.71778345]
[1746887944521,0.13088047,103590.0,103580.0,0.71778345]
[1746887944931,0.13088047,103590.0,103580.0,1.07858345]
[1746887951628,0.13088047,103590.0,103580.0,1.01858345]
[1746887951844,0.35552027,103590.0,103580.0,1.01858345]
[1746887952033,0.38602027,103590.0,103580.0,1.01858345]
[1746887952231,0.19298047,103590.0,103580.0,1.01858345]
[1746887952641,0.19298047,103590.0,103580.0,1.01758345]
[1746887952839,0.19398047,103590.0,103580.0,1.01758345]
[1746887953325,0.16348047,103590.0,103580.0,1.01658345]
[1746887953530,0.16448047,103590.0,103580.0,1.01658345]
[1746887954141,0.16248047,103590.0,103580.0,1.01658345]
[1746887954341,0.35552027,103590.0,103580.0,1.01858345]
[1746887954741,0.46488814,103590.0,103580.0,1.01858345]
[1746887955142,0.63088814,103590.0,103580.0,1.01858345]
[1746887958641,0.66268814,103590.0,103580.0,1.01858345]
[1746887959946,0.68725826,103590.0,103580.0,1.01858345]
[1746887962141,0.68725826,103590.0,103580.0,0.56124438]
[1746887962948,0.72715857,103590.0,103580.0,0.56124438]
[1746887963348,0.69535857,103590.0,103580.0,0.56124438]
[1746887963846,0.72795857,103590.0,103580.0,0.56124438]
[1746887964334,0.56195857,103590.0,103580.0,0.56124438]
[1746887965149,0.72795857,103590.0,103580.0,0.56124438]
[1746887965649,0.72895857,103590.0,103580.0,0.56024438]
[1746887966250,0.56295857,103590.0,103580.0,0.56024438]
[1746887966452,0.56195857,103590.0,103580.0,0.56024438]
[1746887966749,0.56195857,103590.0,103580.0,0.56124438]
[1746887967147,0.72795857,103590.0,103580.0,0.56124438]
[1746887968251,0.72795857,103590.0,103580.0,0.56024438]
[1746887968452,0.72895857,103590.0,103580.0,0.56024438]
[1746887969452,0.72995857,103590.0,103580.0,0.55924438]
[1746887969838,0.72995857,103590.0,103580.0,0.56024438]
[1746887969839,0.72895857,103590.0,103580.0,0.56024438]
[1746887970554,0.72795857,103590.0,103580.0,0.56124438]
[1746887971051,0.75255887,103590.0,103580.0,0.56124438]
[1746887973156,0.58655887,103590.0,103580.0,0.56124438]
[1746887975065,0.55395887,103590.0,103580.0,0.56124438]
[1746887975772,0.55395887,103590.0,103580.0,0.56024438]
[1746887976064,0.55495887,103590.0,103580.0,0.56024438]
[1746887976569,0.55395887,103590.0,103580.0,0.56024438]
[1746887976771,0.55395887,103590.0,103580.0,0.56124438]
[1746887979172,1.19012674,103590.0,103580.0,0.36818598]
[1746887979472,1.4747732,103590.0,103580.0,0.11798598]
[1746887979682,1.36540533,103590.0,103580.0,0.11798598]
[1746887980167,1.6041332,103590.0,103580.0,0.11798598]
[1746887980369,1.6051332,103590.0,103580.0,0.11698598]
[1746887980575,1.6061332,103590.0,103580.0,0.11598598]
[1746887981177,1.6061332,103590.0,103580.0,0.1013]
[1746887981566,1.7026732,103590.0,103580.0,0.04]
[1746887982376,1.7016732,103590.0,103580.0,0.04]
[1746887982673,1.7056732,103590.0,103580.0,0.04]
[1746887983176,1.4469932,103590.0,103580.0,0.04]
[1746887983378,1.7036732,103590.0,103580.0,0.04]
[1746887983676,1.7056732,103590.0,103580.0,0.04]
[1746887984069,1.58294674,103590.0,103580.0,0.04]
[1746887984269,1.58294674,103590.0,103580.0,0.0713]
[1746887986283,1.58294674,103590.0,103580.0,0.0313]
[1746887987378,1.58294674,103590.0,103580.0,0.0629]
[1746887987580,1.50756703,103590.0,103580.0,0.0629]
[1746887988479,1.86836703,103590.0,103580.0,0.0629]
[1746887989582,1.77182703,103590.0,103580.0,0.0629]
[1746887989878,1.86836703,103590.0,103580.0,0.0629]
[1746887991982,1.14676703,103590.0,103580.0,0.0629]
[1746887992280,1.86836703,103590.0,103580.0,0.0629]
[1746887992581,1.77182703,103590.0,103580.0,0.0629]
[1746887993581,1.91880401,103590.0,103580.0,0.0629]
[1746887997178,1.19720401,103590.0,103580.0,0.0629]
[1746887997383,1.91880401,103590.0,103580.0,0.0629]
[1746888001885,1.91880401,103590.0,103580.0,0.0944]
[1746888002090,1.77182703,103590.0,103580.0,0.0944]
[1746888002380,1.77182703,103590.0,103580.0,0.0629]
[1746888004590,1.86836703,103590.0,103580.0,0.0629]
[1746888007485,1.77182703,103590.0,103580.0,0.0629]
[1746888007690,1.86836703,103590.0,103580.0,0.0629]
[1746888009290,1.94334618,103590.0,103580.0,0.0629]
[1746888012095,1.84680618,103590.0,103580.0,0.0629]
[1746888012285,1.94334618,103590.0,103580.0,0.0629]
[1746888013897,1.84680618,103590.0,103580.0,0.0629]
[1746888014096,1.94334618,103590.0,103580.0,0.0629]
[1746888014496,1.84680618,103590.0,103580.0,0.0629]
[1746888016199,1.12520618,103590.0,103580.0,0.0629]
[1746888016388,1.84680618,103590.0,103580.0,0.0629]
[1746888017886,1.62807044,103590.0,103580.0,0.0629]
[1746888018091,1.84680618,103590.0,103580.0,0.0629]
[1746888020300,2.02649145,103590.0,103580.0,0.0629]
[1746888024804,1.94337199,103590.0,103580.0,0.0629]
[1746888026403,1.72463625,103590.0,103580.0,0.0629]
[1746888026594,1.94337199,103590.0,103580.0,0.0629]
[1746888033211,2.02653245,103590.0,103580.0,0.0629]
[1746888039204,1.30493245,103590.0,103580.0,0.0629]
[1746888039404,2.02653245,103590.0,103580.0,0.0629]
[1746888041111,1.30493245,103590.0,103580.0,0.0629]
[1746888041316,2.02553245,103590.0,103580.0,0.0629]
[1746888041615,2.02853245,103590.0,103580.0,0.0629]
[1746888041910,2.02653245,103590.0,103580.0,0.0629]
[1746888042112,1.85753245,103590.0,103580.0,0.0629]
[1746888042313,1.85953245,103590.0,103580.0,0.0629]
[1746888043017,1.60085245,103590.0,103580.0,0.0629]
[1746888043206,1.85929245,103590.0,103580.0,0.0629]
[1746888043915,1.13769245,103590.0,103580.0,0.0629]
[1746888044120,1.85929245,103590.0,103580.0,0.0629]
[1746888044415,1.77613199,103590.0,103580.0,0.0629]
[1746888045117,1.94213199,103590.0,103580.0,0.0629]
[1746888046116,1.77613199,103590.0,103580.0,0.0629]
[1746888047017,1.55739625,103590.0,103580.0,0.0629]
[1746888047213,1.77613199,103590.0,103580.0,0.0629]
[1746888049520,1.74353199,103590.0,103580.0,0.0629]
[1746888050814,1.48509199,103590.0,103580.0,0.0629]
[1746888051117,1.71173199,103590.0,103580.0,0.0629]
[1746888055317,1.49299625,103590.0,103580.0,0.0629]
[1746888055723,1.71173199,103590.0,103580.0,0.0629]
[1746888056128,0.99013199,103590.0,103580.0,0.0629]
[1746888056423,1.71173199,103590.0,103580.0,0.0629]
[1746888057532,1.49299625,103590.0,103580.0,0.0629]
[1746888057729,1.71173199,103590.0,103580.0,0.0629]
[1746888059836,1.49299625,103590.0,103580.0,0.0629]
[1746888060229,1.71173199,103590.0,103580.0,0.0629]
[1746888063335,1.70973199,103590.0,103580.0,0.0629]
[1746888063538,1.71273199,103590.0,103580.0,0.0629]
[1746888065932,1.74463199,103590.0,103580.0,0.0629]
[1746888067438,1.90493199,103590.0,103580.0,0.0629]
[1746888067940,1.74463199,103590.0,103580.0,0.0629]
[1746888076244,1.52589625,103590.0,103580.0,0.0629]
[1746888076545,1.74463199,103590.0,103580.0,0.0629]
[1746888078549,1.02303199,103590.0,103580.0,0.0629]
[1746888078739,1.74463199,103590.0,103580.0,0.0629]
[1746888082344,1.77763199,103590.0,103580.0,0.0629]
[1746888083343,0.1930584,103580.0,103570.0,0.0315]
[1746888083545,0.83799414,103580.0,103570.0,0.0315]
[1746888084540,0.83899414,103580.0,103570.0,0.0315]
[1746888085646,0.96783414,103580.0,103570.0,0.0315]
[1746888086040,0.96883414,103580.0,103570.0,0.0315]
[1746888086544,1.15612987,103580.0,103570.0,0.0315]
[1746888086950,1.15612987,103580.0,103570.0,0.0971]
[1746888088438,1.13260061,103580.0,103570.0,0.0971]
[1746888089345,1.13660061,103580.0,103570.0,0.0971]
[1746888089950,1.13360061,103580.0,103570.0,0.0971]
[1746888090160,1.13460061,103580.0,103570.0,0.0971]
[1746888090337,1.13160061,103580.0,103570.0,0.0971]
[1746888090537,0.98520519,103580.0,103570.0,0.0971]
[1746888090752,0.98420519,103580.0,103570.0,0.0971]
[1746888090951,0.62440519,103580.0,103570.0,0.0971]
[1746888091153,1.34800519,103580.0,103570.0,0.0971]
[1746888092951,1.34700519,103580.0,103570.0,0.0971]
[1746888093147,1.34500519,103580.0,103570.0,0.0971]
[1746888093345,1.34600519,103580.0,103570.0,0.0971]
[1746888093545,1.34800519,103580.0,103570.0,0.0971]
[1746888094155,1.34600519,103580.0,103570.0,0.0971]
[1746888094455,1.41759529,103580.0,103570.0,0.0971]
[1746888098459,1.58962133,103580.0,103570.0,0.0971]
[1746888102661,1.71826133,103580.0,103570.0,0.0971]
[1746888103062,1.54623529,103580.0,103570.0,0.0971]
[1746888103261,1.54623529,103580.0,103570.0,0.2631]
[1746888104954,1.32749955,103580.0,103570.0,0.2631]
[1746888105154,1.54623529,103580.0,103570.0,0.2631]
[1746888109171,1.54623529,103580.0,103570.0,0.0971]
[1746888110178,1.54623529,103580.0,103570.0,0.2631]
[1746888113779,1.71826133,103580.0,103570.0,0.2631]
[1746888113979,1.74896133,103580.0,103570.0,0.2631]
[1746888115183,1.74896133,103580.0,103570.0,0.0971]
[1746888120176,1.78106133,103580.0,103570.0,0.0971]
[1746888125679,1.68492469,103580.0,103570.0,0.0971]
[1746888133687,1.78169008,103580.0,103570.0,0.0971]
[1746888143802,1.78069008,103580.0,103570.0,0.0971]
[1746888143994,1.78369008,103580.0,103570.0,0.0971]
[1746888144195,1.56495434,103580.0,103570.0,0.0971]
[1746888144399,1.78469008,103580.0,103570.0,0.0971]
[1746888148606,1.78269008,103580.0,103570.0,0.0971]
[1746888149499,1.77969008,103580.0,103570.0,0.0971]
[1746888149705,1.74859008,103580.0,103570.0,0.0971]
[1746888150609,1.57656404,103580.0,103570.0,0.0971]
[1746888151508,1.3578283,103580.0,103570.0,0.0971]
[1746888151706,1.57656404,103580.0,103570.0,0.0971]
[1746888157402,1.3578283,103580.0,103570.0,0.0971]
[1746888157609,1.57656404,103580.0,103570.0,0.0971]
[1746888158211,1.60726404,103580.0,103570.0,0.0971]
[1746888160600,1.49789617,103580.0,103570.0,0.0971]
[1746888160802,1.3885283,103580.0,103570.0,0.0971]
[1746888161005,1.60726404,103580.0,103570.0,0.0971]
[1746888163912,1.3885283,103580.0,103570.0,0.0971]
[1746888164312,1.60726404,103580.0,103570.0,0.0971]
[1746888166612,0.88566404,103580.0,103570.0,0.0971]
[1746888166812,1.60726404,103580.0,103570.0,0.0971]
[1746888167504,0.88566404,103580.0,103570.0,0.0971]
[1746888167705,1.60726404,103580.0,103570.0,0.0971]
[1746888171006,1.60926404,103580.0,103570.0,0.0971]
[1746888171811,1.61026404,103580.0,103570.0,0.0971]
[1746888172009,1.78229008,103580.0,103570.0,0.0971]
[1746888175410,1.92977955,103580.0,103570.0,0.0971]
[1746888178319,1.8575607,103580.0,103570.0,0.0971]
[1746888181923,1.8575607,103580.0,103570.0,0.0656]
[1746888182821,0.1931144,103550.0,103540.0,0.55537951]
[1746888183022,0.30248227,103550.0,103540.0,0.42737951]
[1746888183320,0.30248227,103550.0,103540.0,0.5239279]
[1746888183924,0.30348227,103550.0,103540.0,0.334797]
[1746888184115,0.80545014,103550.0,103540.0,0.43604861]
[1746888184432,0.76068227,103550.0,103540.0,0.43604861]
[1746888185016,0.76168227,103550.0,103540.0,0.63318161]
[1746888185218,0.76168227,103550.0,103540.0,0.46718161]
[1746888185413,0.73008227,103550.0,103540.0,0.46718161]
[1746888185721,0.72908227,103550.0,103540.0,0.46418161]
[1746888186121,0.72908227,103550.0,103540.0,0.66248161]
[1746888186928,0.89178029,103550.0,103540.0,0.66248161]
[1746888190135,0.89178029,103550.0,103540.0,0.661033]
[1746888192326,0.89178029,103550.0,103540.0,0.659033]
[1746888192529,0.89178029,103550.0,103540.0,0.660033]
[1746888193335,0.89178029,103550.0,103540.0,0.661033]
[1746888194231,0.74941242,103550.0,103540.0,0.661033]
[1746888194535,0.59390029,103550.0,103540.0,0.661033]
[1746888194925,0.95470029,103550.0,103540.0,0.661033]
[1746888198138,0.98500029,103550.0,103540.0,0.661033]
[1746888198938,1.01630029,103550.0,103540.0,0.661033]
[1746888199139,1.01530029,103550.0,103540.0,0.658033]
[1746888199330,1.01630029,103550.0,103540.0,0.659033]
[1746888202041,1.04950029,103550.0,103540.0,0.659033]
[1746888202248,1.04950029,103550.0,103540.0,0.493033]
[1746888203840,0.68870029,103550.0,103540.0,0.493033]
[1746888204143,1.04950029,103550.0,103540.0,0.493033]
[1746888206956,0.68870029,103550.0,103540.0,0.493033]
[1746888207147,1.04950029,103550.0,103540.0,0.493033]
[1746888212847,0.68870029,103550.0,103540.0,0.493033]
[1746888213044,1.04950029,103550.0,103540.0,0.493033]
[1746888213749,0.68870029,103550.0,103540.0,0.493033]
[1746888213951,1.04950029,103550.0,103540.0,0.493033]
[1746888214551,0.94013242,103550.0,103540.0,0.493033]
[1746888214852,1.04950029,103550.0,103540.0,0.493033]
[1746888215650,1.07419205,103550.0,103540.0,0.493033]
[1746888215846,1.07419205,103550.0,103540.0,0.495033]
[1746888216745,0.71339205,103550.0,103540.0,0.495033]
[1746888216942,0.71339205,103550.0,103540.0,0.496033]
[1746888216943,1.07419205,103550.0,103540.0,0.496033]
[1746888221345,1.07419205,103550.0,103540.0,0.463733]
[1746888221545,1.07419205,103550.0,103540.0,0.494233]
[1746888223351,1.04956765,103550.0,103540.0,0.494233]
[1746888225964,1.01636765,103550.0,103540.0,0.494233]
[1746888228049,1.04099205,103550.0,103540.0,0.494233]
[1746888230854,0.68019205,103550.0,103540.0,0.494233]
[1746888231154,1.04099205,103550.0,103540.0,0.494233]
[1746888231656,0.89350258,103550.0,103540.0,0.494233]
[1746888232155,0.89350258,103550.0,103540.0,0.660233]
[1746888232355,0.53270258,103550.0,103540.0,0.660233]
[1746888232653,0.89350258,103550.0,103540.0,0.660233]
[1746888232854,0.62511471,103550.0,103540.0,0.75680936]
[1746888233053,0.86176258,103550.0,103540.0,0.75680936]
[1746888235751,0.50096258,103550.0,103540.0,0.75680936]
[1746888235958,0.86176258,103550.0,103540.0,0.75680936]
[1746888237960,0.89326258,103550.0,103540.0,0.75680936]
[1746888239253,0.92506258,103550.0,103540.0,0.75680936]
[1746888239561,1.04791367,103550.0,103540.0,0.75680936]
[1746888240662,0.9385458,103550.0,103540.0,0.75680936]
[1746888240860,0.88883367,103550.0,103540.0,0.75680936]
[1746888241055,0.7479658,103550.0,103540.0,0.75680936]
[1746888243665,0.85733367,103550.0,103540.0,0.75680936]
[1746888249771,0.7479658,103550.0,103540.0,0.75680936]
[1746888250268,0.85733367,103550.0,103540.0,0.75680936]
[1746888251167,0.73448258,103550.0,103540.0,0.75680936]
[1746888253178,0.73448258,103550.0,103540.0,0.59080936]
[1746888254163,0.62511471,103550.0,103540.0,0.75680936]
[1746888254378,0.04090031,103550.0,103540.0,1.5601211]
[1746888254674,0.04090031,103550.0,103540.0,2.0371211]
[1746888255072,0.04090031,103550.0,103540.0,1.92775323]
[1746888255382,0.04090031,103550.0,103540.0,2.2871211]
[1746888255678,0.18832162,103550.0,103540.0,2.2871211]
[1746888257271,0.18832162,103550.0,103540.0,2.0371211]
[1746888259383,0.18832162,103550.0,103540.0,1.9405451]
[1746888259581,0.18832162,103550.0,103540.0,2.0371211]
[1746888260085,0.07460907,103550.0,103540.0,2.0371211]
[1746888260382,0.77964543,103560.0,103550.0,0.1931144]
[1746888260583,0.77964543,103560.0,103550.0,0.98738227]
[1746888260772,0.77964543,103560.0,103550.0,1.01868227]
[1746888261084,0.77964543,103560.0,103550.0,1.56782663]
[1746888261686,0.77964543,103560.0,103550.0,1.56882663]
[1746888262183,0.78064543,103560.0,103550.0,1.57082663]
[1746888263786,0.09914543,103560.0,103550.0,1.57082663]
[1746888264786,0.001,103560.0,103550.0,1.57082663]
[1746888265884,1e-07,103560.0,103550.0,1.9301945]
[1746888266089,3e-08,103570.0,103560.0,0.1930957]
[1746888266280,3e-08,103570.0,103560.0,1.86233144]
[1746888266479,3e-08,103570.0,103560.0,1.95888744]
[1746888266679,3e-08,103570.0,103560.0,2.05545448]
[1746888266883,3e-08,103570.0,103560.0,2.41482235]
[1746888267188,3e-08,103570.0,103560.0,2.47145448]
[1746888268583,3e-08,103570.0,103560.0,3.97145448]
[1746888268782,3e-08,103570.0,103560.0,3.97545448]
[1746888269284,3e-08,103570.0,103560.0,3.97345448]
[1746888269584,3e-08,103570.0,103560.0,3.97745448]
[1746888269787,3e-08,103570.0,103560.0,3.86808661]
[1746888270282,3e-08,103570.0,103560.0,3.61808661]
[1746888273691,0.0302,103590.0,103580.0,0.41179414]
[1746888273992,0.0302,103590.0,103580.0,1.34607414]
[1746888274289,0.0302,103590.0,103580.0,1.54003185]
[1746888274492,0.0302,103590.0,103580.0,1.54987832]
[1746888274882,0.0322,103590.0,103580.0,1.54987832]
[1746888275083,0.0332,103590.0,103580.0,1.55387832]
[1746888275589,0.0332,103590.0,103580.0,1.73387832]
[1746888276482,0.0332,103590.0,103580.0,1.74847224]
[1746888277191,0.0332,103590.0,103580.0,1.5297365]
[1746888277391,0.063,103590.0,103580.0,1.74847224]
[1746888277592,0.063,103590.0,103580.0,1.74947224]
[1746888278090,0.0946,103590.0,103580.0,1.74947224]
[1746888278291,0.063,103590.0,103580.0,1.74947224]
[1746888278486,0.063,103590.0,103580.0,1.84601224]
[1746888278487,1e-07,103590.0,103580.0,1.84601224]
[1746888278685,1e-07,103590.0,103580.0,2.20681224]
[1746888279088,1e-07,103590.0,103580.0,2.37281224]
[1746888281189,1e-07,103590.0,103580.0,2.20681224]
[1746888283391,0.0322001,103590.0,103580.0,2.20681224]
[1746888283995,0.0645001,103590.0,103580.0,2.20681224]
[1746888286595,0.0645001,103590.0,103580.0,1.48521224]
[1746888286784,0.0645001,103590.0,103580.0,2.20681224]
[1746888288490,0.0645001,103590.0,103580.0,2.11027224]
[1746888288693,0.0645001,103590.0,103580.0,2.20681224]
[1746888289494,0.0645001,103590.0,103580.0,2.11027224]
[1746888292594,0.0645001,103590.0,103580.0,1.8915365]
[1746888292798,0.0645001,103590.0,103580.0,2.11027224]
[1746888294799,0.0946001,103590.0,103580.0,2.11027224]
[1746888296397,0.0946001,103590.0,103580.0,1.38867224]
[1746888296598,0.0946001,103590.0,103580.0,2.10042577]
[1746888299603,0.0645001,103590.0,103580.0,2.10042577]
[1746888300298,0.2305001,103590.0,103580.0,2.10042577]
[1746888301106,0.2305001,103590.0,103580.0,2.11030411]
[1746888302404,0.4235399,103590.0,103580.0,1.74745624]
[1746888302604,0.4548399,103590.0,103580.0,1.49740837]
[1746888302797,0.4548399,103590.0,103580.0,1.60677624]
[1746888303711,0.2618001,103590.0,103580.0,1.60677624]
[1746888303899,0.2618001,103590.0,103580.0,1.71614411]
[1746888304504,0.1660001,103590.0,103580.0,1.74814411]
[1746888304699,0.78187,103600.0,103590.0,0.1930398]
[1746888305007,0.48748179,103620.0,103600.0,0.1930212]
[1746888305008,0.12268179,103610.0,103600.0,0.1930212]
[1746888305209,0.12268179,103610.0,103600.0,1.72973694]
[1746888305504,0.15298179,103610.0,103600.0,1.72973694]
[1746888305701,0.15298179,103610.0,103600.0,1.67736203]
[1746888305902,0.15298179,103610.0,103600.0,1.77288246]
[1746888306105,0.31898179,103610.0,103600.0,1.77388246]
[1746888306707,0.31898179,103610.0,103600.0,1.77488246]
[1746888306900,0.35178179,103610.0,103600.0,1.77488246]
[1746888307815,0.35178179,103610.0,103600.0,1.77388246]
[1746888308015,0.35178179,103610.0,103600.0,1.77488246]
[1746888309313,0.2291,103610.0,103600.0,1.77488246]
[1746888312405,0.166,103610.0,103600.0,1.77488246]
[1746888313207,0.004,103620.0,103610.0,0.1930025]
[1746888313402,0.004,103620.0,103610.0,1.63002416]
[1746888313606,0.004,103620.0,103610.0,1.46366333]
[1746888313809,0.004,103620.0,103610.0,1.56018376]
[1746888314111,0.17,103620.0,103610.0,1.56018376]
[1746888314313,0.2031,103620.0,103610.0,1.56018376]
[1746888315214,0.2041,103620.0,103610.0,1.39382293]
[1746888315416,0.2041,103620.0,103610.0,1.56018376]
[1746888315620,0.2041,103620.0,103610.0,1.39382293]
[1746888315915,0.172,103620.0,103610.0,1.82654459]
[1746888316109,0.171,103620.0,103610.0,1.66018376]
[1746888316305,0.005,103620.0,103610.0,1.55982293]
[1746888316514,0.006,103620.0,103610.0,1.55982293]
[1746888317013,0.006,103620.0,103610.0,3.32618376]
[1746888317213,0.17,103620.0,103610.0,3.16318376]
[1746888317520,0.171,103620.0,103610.0,3.16818376]
[1746888318013,0.171,103620.0,103610.0,3.00182293]
[1746888318213,0.171,103620.0,103610.0,3.16518376]
[1746888318516,0.171,103620.0,103610.0,3.17018376]
[1746888318706,0.171,103620.0,103610.0,2.90382293]
[1746888318905,0.171,103620.0,103610.0,3.07018376]
[1746888319215,0.171,103620.0,103610.0,2.90382293]
[1746888319521,0.171,103620.0,103610.0,3.07018376]
[1746888320810,0.203,103620.0,103610.0,3.19922293]
[1746888321020,0.2343,103620.0,103610.0,3.36558376]
[1746888321517,0.2343,103620.0,103610.0,3.05098293]
[1746888321722,0.2666,103620.0,103610.0,3.36566376]
[1746888321914,0.2666,103620.0,103610.0,3.19930293]
[1746888322115,0.2666,103620.0,103610.0,3.36566376]
[1746888327727,0.2666,103620.0,103610.0,3.30845594]
[1746888328222,0.171,103620.0,103610.0,3.41760895]
[1746888328427,0.171,103620.0,103610.0,3.51760895]
[1746888329123,0.171,103620.0,103610.0,3.41760895]
[1746888329325,0.171,103620.0,103610.0,3.51760895]
[1746888329726,0.171,103620.0,103610.0,3.46560602]
[1746888334529,0.171,103620.0,103610.0,1.96560602]
[1746888335118,0.171,103620.0,103610.0,3.46560602]
[1746888338125,0.3939839,103620.0,103610.0,0.60952293]
[1746888338429,0.7872839,103620.0,103610.0,0.60952293]
[1746888338621,0.4585839,103620.0,103610.0,0.64022293]
[1746888340035,0.4575839,103620.0,103610.0,0.63522293]
[1746888340225,0.4575839,103620.0,103610.0,0.63722293]
[1746888340429,0.55557154,103620.0,103610.0,0.63722293]
[1746888340729,0.36258764,103620.0,103610.0,0.63722293]
[1746888340928,0.36258764,103620.0,103610.0,0.99802293]
[1746888341133,0.36258764,103620.0,103610.0,0.99402293]
[1746888341629,0.36258764,103620.0,103610.0,0.99102293]
[1746888341836,0.36258764,103620.0,103610.0,0.99402293]
[1746888342137,0.36258764,103620.0,103610.0,1.16032602]
[1746888342435,0.36258764,103620.0,103610.0,1.19332602]
[1746888342938,0.36258764,103620.0,103610.0,1.02702293]
[1746888343233,0.36258764,103620.0,103610.0,1.19332602]
[1746888343630,0.36258764,103620.0,103610.0,1.22342602]
[1746888346434,0.26798764,103620.0,103610.0,1.53342602]
[1746888346732,0.26798764,103620.0,103610.0,1.79972911]
[1746888346923,0.26798764,103620.0,103610.0,1.63342602]
[1746888347127,0.10198764,103620.0,103610.0,3.13312293]
[1746888347337,0.10198764,103620.0,103610.0,3.29942602]
[1746888348127,0.17,103620.0,103610.0,3.13342602]
[1746888348330,0.1351154,103620.0,103610.0,3.13342602]
[1746888350238,0.072861,103620.0,103610.0,3.13342602]
[1746888350441,0.0402078,103620.0,103610.0,3.13342602]
[1746888350843,0.09798764,103630.0,103620.0,0.1929839]
[1746888351142,0.03306959,103640.0,103630.0,0.1929653]
[1746888351342,9e-08,103640.0,103630.0,1.85226839]